bitfinex/quotes_BTCUSD_20241018
["timestamp","ask_amount","ask_price","bid_price","bid_amount"]
[1729244564218,0.26394402,67876.0,67875.0,1.03156752]
[1729244564452,0.26394402,67876.0,67875.0,0.94151599]
[1729244564683,0.34684402,67876.0,67875.0,0.89749229]
[1729244564920,0.34684402,67876.0,67875.0,0.19749229]
[1729244565392,0.34684402,67876.0,67875.0,0.18349229]
[1729244565841,0.34684402,67876.0,67875.0,0.19749229]
[1729244567086,0.34684402,67876.0,67875.0,0.16949229]
[1729244567272,0.34684402,67876.0,67875.0,0.19549229]
[1729244568288,0.34684402,67876.0,67875.0,0.19549821]
[1729244568506,0.149023,67876.0,67875.0,0.19549821]
[1729244572491,0.149023,67876.0,67875.0,0.18389034]
[1729244572710,0.149023,67876.0,67875.0,0.19549143]
[1729244573665,0.149023,67876.0,67875.0,0.23953528]
[1729244574136,0.43724402,67876.0,67875.0,0.19549143]
[1729244574616,0.322323,67876.0,67875.0,0.19549143]
[1729244575099,0.43724402,67876.0,67875.0,0.19549143]
[1729244575533,0.44224402,67876.0,67875.0,0.18959843]
[1729244575770,0.54224402,67876.0,67875.0,0.18959843]
[1729244576023,0.54817997,67876.0,67875.0,0.18959843]
[1729244578069,0.54817997,67876.0,67875.0,0.04063928]
[1729244579016,0.54817997,67876.0,67875.0,0.02763928]
[1729244579240,0.54817997,67876.0,67875.0,0.01463928]
[1729244579465,0.54817997,67876.0,67875.0,0.04063928]
[1729244579940,0.55957262,67876.0,67875.0,0.02763928]
[1729244580164,0.55957262,67876.0,67875.0,0.02763091]
[1729244580389,0.55957262,67876.0,67875.0,0.03363091]
[1729244580614,0.55957262,67876.0,67875.0,0.02063091]
[1729244581312,0.54817997,67876.0,67875.0,0.02663091]
[1729244581553,0.43325895,67876.0,67875.0,0.02663091]
[1729244582022,0.43325895,67876.0,67875.0,0.02442072]
[1729244583634,0.54817997,67876.0,67875.0,0.02442072]
[1729244585694,0.66310099,67876.0,67875.0,0.02442072]
[1729244586196,0.54817997,67876.0,67875.0,0.02442072]
[1729244586846,0.54817997,67876.0,67875.0,0.02442141]
[1729244589832,0.25351999,67876.0,67875.0,0.17338056]
[1729244590051,0.36844101,67876.0,67875.0,0.17338056]
[1729244590728,0.36844101,67876.0,67875.0,0.17338913]
[1729244593559,0.36394402,67876.0,67875.0,0.17338913]
[1729244593781,0.36844101,67876.0,67875.0,0.17338913]
[1729244594696,0.66096203,67876.0,67875.0,0.17338913]
[1729244594939,0.66096203,67876.0,67875.0,0.17340476]
[1729244595152,0.66240099,67876.0,67875.0,0.17340476]
[1729244596669,0.66240099,67876.0,67875.0,0.02444561]
[1729244597122,0.66240099,67876.0,67865.0,0.00221049]
[1729244597123,0.005,67866.0,67865.0,0.00221049]
[1729244597392,0.37320597,67866.0,67865.0,0.00221049]
[1729244597863,0.45010597,67866.0,67865.0,0.00221049]
[1729244599028,0.54110597,67866.0,67865.0,0.00221049]
[1729244599964,0.225283,67850.0,67849.0,0.058966]
[1729244600185,0.225283,67850.0,67848.0,0.21942817]
[1729244600186,0.25188299,67849.0,67848.0,0.21942817]
[1729244600421,0.14739,67847.0,67846.0,0.058966]
[1729244600636,0.26680801,67847.0,67846.0,0.058966]
[1729244601065,0.26680801,67847.0,67846.0,0.20792515]
[1729244601312,0.26680801,67847.0,67846.0,0.14895915]
[1729244601313,0.38172903,67847.0,67846.0,0.14895915]
[1729244601544,0.25189599,67843.0,67842.0,0.069795]
[1729244601779,0.36681701,67843.0,67842.0,0.15978815]
[1729244601999,0.25189599,67843.0,67842.0,0.15978815]
[1729244604529,0.25189599,67843.0,67842.0,0.17078815]
[1729244604961,0.25189599,67843.0,67842.0,0.16578815]
[1729244605449,0.25189599,67843.0,67842.0,0.17178815]
[1729244609272,0.25189599,67843.0,67842.0,0.18335479]
[1729244610259,0.25189599,67843.0,67842.0,0.17735479]
[1729244610472,0.25189599,67843.0,67842.0,0.17135479]
[1729244610808,0.25189599,67843.0,67842.0,0.18235479]
[1729244611010,0.25189599,67843.0,67842.0,0.17735479]
[1729244611463,0.25189599,67843.0,67842.0,0.17535479]
[1729244611682,0.25189599,67843.0,67842.0,0.18035479]
[1729244614310,0.25189599,67843.0,67842.0,0.16878815]
[1729244614529,0.25189599,67843.0,67842.0,0.1803504]
[1729244618497,0.25189599,67843.0,67842.0,0.18035475]
[1729244618935,0.25189599,67843.0,67842.0,0.17035475]
[1729244620274,0.247399,67843.0,67842.0,0.17035475]
[1729244620492,0.25189599,67843.0,67842.0,0.17035475]
[1729244620967,0.25189599,67843.0,67842.0,0.17035961]
[1729244621419,0.33179599,67843.0,67842.0,0.17035961]
[1729244622537,0.33179599,67843.0,67842.0,0.16536659]
[1729244623410,0.33179599,67843.0,67842.0,0.16136659]
[1729244623841,0.33179599,67843.0,67842.0,0.16336659]
[1729244624514,0.33179599,67843.0,67842.0,0.16836659]
[1729244624718,0.34314579,67843.0,67842.0,0.15836659]
[1729244624936,0.34314579,67843.0,67842.0,0.15336659]
[1729244625382,0.34314579,67843.0,67842.0,0.15636659]
[1729244625869,0.34314579,67843.0,67842.0,0.15336659]
[1729244626513,0.34314579,67843.0,67842.0,0.15136659]
[1729244626731,0.34314579,67843.0,67842.0,0.15139171]
[1729244626957,0.34314579,67843.0,67842.0,0.15239171]
[1729244627169,0.34314579,67843.0,67842.0,0.15539171]
[1729244627807,0.34314579,67843.0,67842.0,0.15139171]
[1729244628507,0.34314579,67843.0,67842.0,0.15322071]
[1729244630704,0.34958475,67843.0,67842.0,0.01343256]
[1729244633514,0.33823495,67843.0,67842.0,0.01343256]
[1729244636230,0.33823495,67843.0,67842.0,0.01344502]
[1729244638502,0.33823495,67843.0,67842.0,0.001829]
[1729244638729,0.33823495,67843.0,67842.0,0.01344432]
[1729244640763,0.33989295,67843.0,67842.0,0.01344432]
[1729244641452,0.33989295,67843.0,67842.0,0.01344456]
[1729244641673,0.33989295,67843.0,67842.0,0.01344451]
[1729244644916,0.43179295,67843.0,67842.0,0.0133632]
[1729244645199,0.47966031,67843.0,67842.0,0.0133632]
[1729244645415,0.43679295,67843.0,67842.0,0.0133632]
[1729244645643,0.44179295,67843.0,67842.0,0.0133632]
[1729244645865,0.44179295,67843.0,67842.0,0.00174769]
[1729244645866,0.44679295,67843.0,67842.0,0.00174769]
[1729244646085,0.44679295,67843.0,67842.0,0.00074769]
[1729244646765,0.44679295,67843.0,67842.0,0.00174769]
[1729244647605,0.45179295,67843.0,67842.0,0.00274769]
[1729244648546,0.45179295,67843.0,67842.0,0.00174769]
[1729244648984,0.46079295,67843.0,67842.0,0.00274769]
[1729244649462,0.45179295,67843.0,67842.0,0.00174769]
[1729244649682,0.46079295,67843.0,67842.0,0.00274769]
[1729244649895,0.45579295,67843.0,67842.0,0.00174769]
[1729244650350,0.46079295,67843.0,67842.0,0.00274769]
[1729244650557,0.6097521,67843.0,67842.0,0.00274769]
[1729244652177,0.16333895,67841.0,67840.0,0.0178732]
[1729244652395,0.66738099,67841.0,67840.0,0.0178732]
[1729244652611,0.82134014,67841.0,67840.0,0.0178732]
[1729244652812,0.67738099,67841.0,67840.0,0.0178732]
[1729244653224,0.68238099,67841.0,67840.0,0.0188732]
[1729244653431,0.69138099,67841.0,67840.0,0.0198732]
[1729244657311,0.46153895,67841.0,67840.0,0.0198732]
[1729244657525,0.69138099,67841.0,67840.0,0.0198732]
[1729244658613,0.68138099,67841.0,67840.0,0.0198732]
[1729244658825,0.69138099,67841.0,67840.0,0.0198732]
[1729244659230,0.68138099,67841.0,67840.0,0.0198732]
[1729244659444,0.69138099,67841.0,67840.0,0.0198732]
[1729244660357,0.84034014,67841.0,67840.0,0.0198732]
[1729244662388,0.69138099,67841.0,67840.0,0.0198732]
[1729244662615,0.68138099,67841.0,67840.0,0.0198732]
[1729244662828,0.69138099,67841.0,67840.0,0.0198732]
[1729244664484,0.68138099,67841.0,67840.0,0.0207022]
[1729244664682,0.69138099,67841.0,67840.0,0.0207022]
[1729244665335,0.84034014,67841.0,67840.0,0.0207022]
[1729244665769,0.83034014,67841.0,67840.0,0.0207022]
[1729244665981,0.84034014,67841.0,67840.0,0.0207022]
[1729244666403,0.68746901,67841.0,67840.0,0.0207022]
[1729244668152,0.67746901,67841.0,67840.0,0.0207022]
[1729244668362,0.68746901,67841.0,67840.0,0.0207022]
[1729244668807,0.67746901,67841.0,67840.0,0.0207022]
[1729244669025,0.68746901,67841.0,67840.0,0.0207022]
[1729244669722,0.714764,67841.0,67840.0,0.0207022]
[1729244669939,0.68746901,67841.0,67840.0,0.0207022]
[1729244674317,0.68746901,67841.0,67840.0,0.03232857]
[1729244679151,0.70123722,67841.0,67840.0,0.03232857]
[1729244680054,0.70123722,67841.0,67840.0,0.0207022]
[1729244680689,0.70323722,67841.0,67840.0,0.0207022]
[1729244680908,0.70123722,67841.0,67840.0,0.0207022]
[1729244681115,0.70123718,67841.0,67840.0,0.0207022]
[1729244681329,0.68746901,67841.0,67840.0,0.0207022]
[1729244681536,0.70123708,67841.0,67840.0,0.0207022]
[1729244682263,0.68746901,67841.0,67840.0,0.0207022]
[1729244682464,0.70123657,67841.0,67840.0,0.0207022]
[1729244683816,0.58631555,67841.0,67840.0,0.0207022]
[1729244684032,0.68746901,67841.0,67840.0,0.0207022]
[1729244684719,0.68746901,67841.0,67840.0,0.03232999]
[1729244688650,0.68912701,67841.0,67840.0,0.03232999]
[1729244689284,0.68912701,67841.0,67840.0,0.0207022]
[1729244689493,0.69112701,67841.0,67840.0,0.0207022]
[1729244690138,0.735146,67841.0,67840.0,0.0207022]
[1729244691235,0.69112701,67841.0,67840.0,0.0207022]
[1729244691878,0.68112701,67841.0,67840.0,0.0207022]
[1729244692100,0.69112701,67841.0,67840.0,0.0207022]
[1729244692320,0.68912701,67841.0,67840.0,0.0207022]
[1729244693731,0.69112701,67841.0,67840.0,0.0207022]
[1729244693948,0.68912701,67841.0,67840.0,0.0207022]
[1729244696206,0.69112701,67841.0,67840.0,0.0207022]
[1729244698037,0.68912701,67841.0,67840.0,0.0207022]
[1729244700486,0.73319371,67841.0,67840.0,0.03233216]
[1729244701456,0.73319371,67841.0,67837.0,0.000828]
[1729244701457,0.25943397,67838.0,67837.0,0.000828]
[1729244701692,0.25444697,67832.0,67831.0,0.006]
[1729244701927,0.60421003,67832.0,67831.0,0.006]
[1729244702151,0.48928901,67832.0,67831.0,0.006]
[1729244703091,0.49028901,67832.0,67831.0,0.006]
[1729244705539,0.50168439,67832.0,67831.0,0.006]
[1729244708322,0.61660541,67832.0,67831.0,0.006]
[1729244708772,0.50168439,67832.0,67831.0,0.006]
[1729244711234,0.50168439,67832.0,67831.0,0.006829]
[1729244713447,0.50168439,67832.0,67831.0,0.01844947]
[1729244714760,0.70516541,67832.0,67831.0,0.01844947]
[1729244714991,0.61660541,67832.0,67831.0,0.01844947]
[1729244715193,0.70910541,67832.0,67831.0,0.01844947]
[1729244715638,0.70910541,67832.0,67831.0,0.01844937]
[1729244715874,0.50168439,67832.0,67831.0,0.01844937]
[1729244717450,0.50168439,67832.0,67831.0,0.006829]
[1729244717451,0.61660541,67832.0,67831.0,0.006829]
[1729244717893,0.61660541,67832.0,67820.0,0.0921]
[1729244717894,0.00202397,67821.0,67820.0,0.0921]
[1729244718133,0.48431201,67821.0,67820.0,0.10372174]
[1729244718346,0.48431201,67821.0,67820.0,0.11075453]
[1729244718577,0.48431201,67821.0,67820.0,0.10372174]
[1729244719265,0.48531201,67821.0,67820.0,0.11372174]
[1729244719700,0.48531201,67821.0,67820.0,0.10372174]
[1729244721109,0.48531201,67821.0,67820.0,0.01162174]
[1729244723261,0.49680337,67821.0,67820.0,0.01162174]
[1729244723500,0.49680337,67821.0,67820.0,0.01243245]
[1729244726119,0.49680337,67821.0,67807.0,0.04503021]
[1729244726120,0.00702397,67809.0,67807.0,0.04503021]
[1729244726320,0.00702397,67809.0,67807.0,0.000828]
[1729244726321,0.48433901,67809.0,67807.0,0.000828]
[1729244726523,0.48433901,67809.0,67808.0,0.00796927]
[1729244726721,0.48433901,67809.0,67807.0,0.000828]
[1729244726722,2.35779738,67800.0,67798.0,0.04416992]
[1729244726926,2.4727184,67800.0,67799.0,0.14895915]
[1729244729307,2.4737184,67800.0,67799.0,0.15595915]
[1729244729943,2.4747184,67800.0,67799.0,0.25925915]
[1729244731540,2.4747184,67800.0,67799.0,0.16395915]
[1729244732180,2.57530341,67800.0,67799.0,0.16395915]
[1729244732656,2.46038239,67800.0,67799.0,0.16395915]
[1729244732871,2.57530341,67800.0,67799.0,0.16395915]
[1729244734227,2.57530341,67800.0,67799.0,0.15895915]
[1729244735826,2.46038239,67800.0,67799.0,0.15895915]
[1729244736080,2.57530341,67800.0,67799.0,0.15895915]
[1729244736541,2.57530341,67800.0,67799.0,0.15978815]
[1729244737463,2.57696141,67800.0,67799.0,0.15978815]
[1729244738145,2.57696141,67800.0,67799.0,0.17137755]
[1729244738862,2.57696141,67800.0,67799.0,0.15978815]
[1729244740040,2.58340037,67800.0,67799.0,0.015829]
[1729244740517,2.58340037,67800.0,67799.0,0.02740239]
[1729244740518,2.68090037,67800.0,67799.0,0.02740239]
[1729244741656,2.58340037,67800.0,67799.0,0.02740239]
[1729244744366,2.58340037,67800.0,67799.0,0.02740482]
[1729244745569,2.58180626,67800.0,67799.0,0.02740482]
[1729244745780,0.00058501,67787.0,67786.0,0.01538338]
[1729244746038,0.00058501,67787.0,67786.0,0.16434253]
[1729244746039,0.36302603,67787.0,67786.0,0.16434253]
[1729244746257,0.36302603,67787.0,67786.0,0.14895915]
[1729244747229,0.36402603,67787.0,67786.0,0.16295915]
[1729244747448,0.36402603,67787.0,67786.0,0.14895915]
[1729244747449,0.45762603,67787.0,67786.0,0.14895915]
[1729244747703,0.45762603,67787.0,67786.0,0.15595915]
[1729244747704,0.45862603,67787.0,67786.0,0.15595915]
[1729244748402,0.46506499,67787.0,67786.0,0.007]
[1729244748625,0.247538,67779.0,67778.0,0.0022134]
[1729244748869,0.36304403,67779.0,67778.0,0.15117255]
[1729244749552,0.247538,67779.0,67778.0,0.15117255]
[1729244749765,0.00058501,67789.0,67782.0,0.14753]
[1729244750003,0.00058501,67789.0,67786.0,0.005]
[1729244750004,0.147522,67787.0,67786.0,0.005]
[1729244750232,0.147525,67785.0,67783.0,0.14895915]
[1729244750456,0.26244802,67785.0,67783.0,0.14895915]
[1729244750900,0.147527,67784.0,67783.0,0.14895915]
[1729244751799,0.147527,67784.0,67783.0,0.15795915]
[1729244752017,0.147527,67784.0,67783.0,0.16695915]
[1729244752458,0.147527,67784.0,67783.0,0.15795915]
[1729244753369,0.147527,67784.0,67783.0,0.14895915]
[1729244754108,0.149527,67784.0,67783.0,0.16895915]
[1729244754775,0.002,67784.0,67783.0,0.16895915]
[1729244755449,0.149527,67784.0,67783.0,0.16895915]
[1729244755672,0.002,67784.0,67783.0,0.16895915]
[1729244755893,0.149527,67784.0,67783.0,0.16895915]
[1729244756112,0.002,67784.0,67783.0,0.16895915]
[1729244757270,0.14937655,67784.0,67783.0,0.16895915]
[1729244757492,0.11677057,67784.0,67783.0,0.16895915]
[1729244757711,0.11677057,67784.0,67783.0,0.18054206]
[1729244757932,0.26429757,67784.0,67783.0,0.18054206]
[1729244758152,0.11677057,67784.0,67783.0,0.18054206]
[1729244758805,0.26429757,67784.0,67783.0,0.18054206]
[1729244760419,0.11677057,67784.0,67783.0,0.18054206]
[1729244760638,0.00184955,67784.0,67783.0,0.23956006]
[1729244760866,0.14937655,67784.0,67783.0,0.24724816]
[1729244761113,0.14937655,67784.0,67783.0,0.25067709]
[1729244762470,0.00184955,67784.0,67783.0,0.24724775]
[1729244762703,0.00184955,67784.0,67783.0,0.29668603]
[1729244763394,0.14937655,67784.0,67783.0,0.29668603]
[1729244764068,0.14937655,67784.0,67783.0,0.28510312]
[1729244764295,0.14937655,67784.0,67783.0,0.29667924]
[1729244767720,0.14937655,67784.0,67783.0,0.34076276]
[1729244768602,0.14937655,67784.0,67783.0,0.32918664]
[1729244768820,0.14937655,67784.0,67783.0,0.34077269]
[1729244769716,0.14937655,67784.0,67783.0,0.29668917]
[1729244770424,0.00184955,67784.0,67783.0,0.61630871]
[1729244770673,0.00202397,67799.0,67783.0,0.61630871]
[1729244770674,0.21942817,67799.0,67798.0,0.147496]
[1729244770885,0.21942817,67799.0,67798.0,0.35405007]
[1729244771094,0.21942817,67799.0,67798.0,0.36093356]
[1729244771305,0.14748,67806.0,67799.0,0.147494]
[1729244771519,0.21942817,67808.0,67799.0,0.44233989]
[1729244771790,0.21942817,67808.0,67799.0,0.58842359]
[1729244771997,0.21942817,67808.0,67799.0,0.363135]
[1729244772247,0.21942817,67808.0,67799.0,0.36657096]
[1729244772441,0.88445916,67800.0,67799.0,0.44747708]
[1729244772866,0.88445916,67800.0,67799.0,0.53576418]
[1729244773290,0.88445916,67800.0,67799.0,0.53376418]
[1729244773512,0.88445916,67800.0,67799.0,0.44547708]
[1729244773953,0.88445916,67800.0,67799.0,0.44747708]
[1729244774183,0.88445916,67800.0,67799.0,0.52764198]
[1729244774409,0.85545916,67800.0,67799.0,0.52764198]
[1729244774627,0.85545916,67800.0,67799.0,0.43647708]
[1729244775047,0.85545916,67800.0,67799.0,0.43847708]
[1729244775483,0.85545916,67800.0,67799.0,0.45247708]
[1729244776550,0.85545916,67800.0,67799.0,0.49656082]
[1729244776813,0.85545916,67800.0,67799.0,0.49655995]
[1729244777038,0.82645916,67800.0,67799.0,0.49655995]
[1729244777259,0.82645916,67800.0,67799.0,0.49651468]
[1729244777700,0.82645916,67800.0,67799.0,0.49451468]
[1729244778126,0.82645916,67800.0,67799.0,0.49651468]
[1729244778546,0.82645916,67800.0,67799.0,0.45243181]
[1729244778779,0.67717009,67800.0,67799.0,0.45243181]
[1729244779009,0.21942817,67815.0,67814.0,0.147462]
[1729244779207,0.21942817,67815.0,67814.0,0.30996193]
[1729244779418,0.21942817,67815.0,67814.0,0.32006061]
[1729244779642,0.21942817,67822.0,67821.0,0.147446]
[1729244779875,0.21942817,67822.0,67821.0,0.30794593]
[1729244780100,0.36687217,67822.0,67821.0,0.16049993]
[1729244780327,0.225844,67822.0,67821.0,0.17050274]
[1729244780542,0.225844,67822.0,67821.0,0.14895915]
[1729244780760,0.39297625,67822.0,67821.0,0.14895915]
[1729244780977,0.39297625,67822.0,67814.0,0.00221202]
[1729244780978,0.294915,67816.0,67814.0,0.01321202]
[1729244781205,0.14746,67815.0,67814.0,0.01321202]
[1729244781670,0.14746,67815.0,67814.0,0.00221202]
[1729244782152,0.14746,67815.0,67814.0,0.01373074]
[1729244782375,0.14746,67815.0,67814.0,0.00221202]
[1729244782592,0.14746,67815.0,67814.0,0.01373074]
[1729244783037,0.14746,67815.0,67814.0,0.02473074]
[1729244783275,0.14746,67815.0,67814.0,0.01373074]
[1729244783501,0.14746,67815.0,67814.0,0.02473074]
[1729244783967,0.14746,67815.0,67814.0,0.03673074]
[1729244784705,0.149118,67815.0,67814.0,0.03673074]
[1729244784935,0.001658,67815.0,67814.0,0.03673074]
[1729244785175,0.001658,67815.0,67814.0,0.04682703]
[1729244785390,0.001658,67815.0,67814.0,0.18419274]
[1729244785622,0.001658,67815.0,67814.0,0.32024818]
[1729244785878,0.001658,67815.0,67814.0,0.32224818]
[1729244786134,0.001658,67815.0,67814.0,0.41684818]
[1729244786368,0.001658,67815.0,67814.0,0.42584818]
[1729244787060,0.001658,67815.0,67814.0,0.41684818]
[1729244787287,0.001658,67815.0,67814.0,0.40484818]
[1729244787517,0.001658,67815.0,67814.0,0.42584818]
[1729244788011,0.001658,67815.0,67814.0,0.74387635]
[1729244788220,0.001658,67815.0,67814.0,0.54586317]
[1729244788453,0.21942817,67826.0,67825.0,0.899438]
[1729244788454,0.21884316,67826.0,67825.0,0.899438]
[1729244788696,0.21884316,67826.0,67825.0,1.22704812]
[1729244788925,0.001658,67832.0,67831.0,0.147425]
[1729244789190,0.001658,67832.0,67831.0,0.16047787]
[1729244789408,0.001658,67832.0,67831.0,0.3133738]
[1729244789653,0.001658,67832.0,67831.0,0.1679488]
[1729244789893,0.001658,67832.0,67831.0,0.3153738]
[1729244790107,0.001658,67832.0,67831.0,0.1679488]
[1729244790330,0.001658,67832.0,67831.0,0.1799488]
[1729244790806,0.149081,67832.0,67831.0,0.1799488]
[1729244791030,0.149081,67832.0,67831.0,0.1821604]
[1729244791251,0.149081,67832.0,67831.0,0.1961604]
[1729244793535,0.149081,67832.0,67831.0,0.19068947]
[1729244795345,0.001658,67832.0,67831.0,0.19068947]
[1729244795581,0.149081,67832.0,67831.0,0.19068947]
[1729244795793,0.149081,67832.0,67831.0,0.19615953]
[1729244796015,0.149081,67832.0,67831.0,0.19068947]
[1729244796245,0.149081,67832.0,67831.0,0.19615953]
[1729244796467,0.149081,67832.0,67831.0,0.19068947]
[1729244797850,0.232081,67832.0,67831.0,0.19068947]
[1729244798072,0.232081,67832.0,67831.0,0.19071138]
[1729244798541,0.232081,67832.0,67831.0,0.19071165]
[1729244798987,0.232081,67832.0,67831.0,0.19618152]
[1729244799681,0.232081,67832.0,67831.0,0.19071165]
[1729244800143,0.331281,67832.0,67831.0,0.19618192]
[1729244800600,0.331281,67832.0,67831.0,0.19071204]
[1729244801257,0.331281,67832.0,67831.0,0.19618192]
[1729244801474,0.331281,67832.0,67831.0,0.17671204]
[1729244801690,0.331281,67832.0,67831.0,0.17618335]
[1729244802121,0.331281,67832.0,67831.0,0.18318335]
[1729244805313,0.331281,67832.0,67831.0,0.17618335]
[1729244805740,0.331281,67832.0,67831.0,0.17818335]
[1729244806184,0.331281,67832.0,67831.0,0.1701884]
[1729244806403,0.332281,67832.0,67831.0,0.17271852]
[1729244806628,0.332281,67832.0,67831.0,0.1781885]
[1729244807069,0.331281,67832.0,67831.0,0.1701885]
[1729244807340,0.331281,67832.0,67831.0,0.1731885]
[1729244808215,0.232081,67832.0,67831.0,0.1731885]
[1729244808429,0.084658,67832.0,67831.0,0.16771852]
[1729244808653,0.084658,67832.0,67831.0,0.17318849]
[1729244808877,0.232081,67832.0,67831.0,0.17318849]
[1729244809966,0.001658,67832.0,67831.0,0.32061349]
[1729244810211,0.001658,67832.0,67831.0,0.30906572]
[1729244810437,0.001658,67832.0,67831.0,0.32062229]
[1729244811136,0.001658,67832.0,67831.0,0.36654169]
[1729244813474,0.001658,67832.0,67831.0,0.41049924]
[1729244814618,0.001658,67832.0,67831.0,0.43247801]
[1729244815122,0.001658,67832.0,67831.0,0.43447801]
[1729244815349,0.001658,67832.0,67831.0,0.43247801]
[1729244815581,0.001658,67832.0,67831.0,0.36654169]
[1729244815796,0.001658,67832.0,67831.0,0.36854169]
[1729244816018,0.001658,67832.0,67831.0,0.45462446]
[1729244816254,0.001658,67832.0,67831.0,0.36854169]
[1729244816758,0.001658,67832.0,67831.0,0.4766442]
[1729244817199,0.001658,67832.0,67831.0,0.47667956]
[1729244817445,0.001658,67832.0,67831.0,0.36654169]
[1729244818347,0.001658,67832.0,67831.0,1.19756094]
[1729244818558,0.001658,67832.0,67831.0,1.19956094]
[1729244818982,0.001658,67832.0,67831.0,1.19456094]
[1729244819419,0.001658,67832.0,67831.0,1.22034934]
[1729244819637,0.001658,67832.0,67831.0,1.2225607]
[1729244820502,0.001658,67832.0,67831.0,1.35468371]
[1729244820718,0.001658,67832.0,67831.0,1.3547596]
[1729244821596,0.001658,67832.0,67831.0,1.22255773]
[1729244823435,0.001658,67832.0,67831.0,1.22055773]
[1729244824816,0.001658,67832.0,67831.0,1.13955773]
[1729244828851,0.001658,67832.0,67831.0,0.99213273]
[1729244829322,0.001658,67832.0,67831.0,1.13955773]
[1729244829758,0.001658,67832.0,67831.0,1.13955322]
[1729244831379,0.001658,67832.0,67831.0,0.99212822]
[1729244831597,0.001658,67832.0,67831.0,1.13955322]
[1729244834056,0.001658,67832.0,67831.0,1.13955644]
[1729244834500,0.001658,67832.0,67831.0,1.13955779]
[1729244836960,0.001658,67832.0,67831.0,1.45567584]
[1729244837175,0.001658,67832.0,67831.0,1.26005779]
[1729244838752,0.001658,67832.0,67831.0,1.26205779]
[1729244839206,0.001658,67832.0,67831.0,1.27147278]
[1729244840176,0.20575715,67840.0,67838.0,0.002]
[1729244840378,0.001658,67841.0,67840.0,0.31387194]
[1729244840602,0.001658,67841.0,67840.0,0.35337046]
[1729244840820,0.001658,67841.0,67840.0,0.35877623]
[1729244841031,0.001658,67841.0,67840.0,0.36057815]
[1729244841284,0.001658,67841.0,67840.0,0.21365915]
[1729244841512,0.001658,67841.0,67840.0,0.49348462]
[1729244842261,0.001658,67841.0,67840.0,0.50748462]
[1729244842465,0.001658,67841.0,67840.0,0.37506742]
[1729244842928,0.001658,67841.0,67840.0,0.36106742]
[1729244843611,0.001658,67841.0,67840.0,0.49348789]
[1729244843828,0.001658,67841.0,67840.0,0.35708289]
[1729244844057,0.001658,67841.0,67840.0,0.50448789]
[1729244844515,0.001658,67841.0,67840.0,0.37206742]
[1729244844959,0.001658,67841.0,67840.0,0.38206742]
[1729244845183,0.001658,67841.0,67840.0,0.37106742]
[1729244845639,0.001658,67841.0,67840.0,0.38106742]
[1729244846101,0.001658,67841.0,67840.0,0.36949124]
[1729244846327,0.001658,67841.0,67840.0,0.38106536]
[1729244848119,0.001658,67841.0,67840.0,0.38106466]
[1729244849222,0.149061,67841.0,67840.0,0.23365966]
[1729244849459,0.39831394,67841.0,67840.0,0.23365966]
[1729244849705,0.39831394,67841.0,67840.0,0.18774026]
[1729244849894,0.49541394,67841.0,67840.0,0.18774026]
[1729244850106,0.49541394,67841.0,67840.0,0.29808117]
[1729244850319,0.49541394,67841.0,67840.0,0.18773955]
[1729244850527,0.49541394,67841.0,67840.0,0.29808306]
[1729244850733,0.49541394,67841.0,67840.0,0.28808306]
[1729244851163,0.49599895,67841.0,67840.0,0.29108306]
[1729244851372,0.49599895,67841.0,67840.0,0.27808306]
[1729244851788,0.49599895,67841.0,67840.0,0.29008306]
[1729244852011,0.49599895,67841.0,67840.0,0.28808306]
[1729244852223,0.49599895,67841.0,67840.0,0.27808306]
[1729244852658,0.49699895,67841.0,67840.0,0.27808306]
[1729244853553,0.49699895,67841.0,67840.0,0.16773955]
[1729244853980,0.49699895,67841.0,67840.0,0.15616684]
[1729244854191,0.49699895,67841.0,67840.0,0.16773752]
[1729244857508,0.49699895,67841.0,67840.0,0.16856552]
[1729244857920,0.49699895,67841.0,67840.0,0.15699484]
[1729244858121,0.33004601,67841.0,67840.0,0.16856376]
[1729244858325,0.49699895,67841.0,67840.0,0.15699484]
[1729244858539,0.49699895,67841.0,67840.0,0.16856341]
[1729244860048,0.33004601,67841.0,67840.0,0.16856341]
[1729244861613,0.33004601,67841.0,67840.0,0.15699484]
[1729244861828,0.33004601,67841.0,67840.0,0.16856065]
[1729244865978,0.33004601,67841.0,67840.0,0.15699484]
[1729244866208,0.33004601,67841.0,67840.0,0.1685603]
[1729244869896,0.44513408,67841.0,67840.0,0.1685603]
[1729244870594,0.44513408,67841.0,67840.0,0.16856041]
[1729244871277,0.44454907,67841.0,67840.0,0.16856041]
[1729244871491,0.44513408,67841.0,67840.0,0.16856041]
[1729244872136,0.44513408,67841.0,67840.0,0.25690237]
[1729244872137,0.56629049,67841.0,67840.0,0.25690237]
[1729244872356,0.56772945,67841.0,67840.0,0.25690237]
[1729244872567,0.45157304,67841.0,67840.0,0.16856041]
[1729244873402,0.45157304,67841.0,67840.0,0.23481144]
[1729244873604,0.45157304,67841.0,67840.0,0.16856041]
[1729244874026,0.45057304,67841.0,67840.0,0.16856041]
[1729244874451,0.45257304,67841.0,67840.0,0.16856041]
[1729244875101,0.45057304,67841.0,67840.0,0.16856041]
[1729244875316,0.45157304,67841.0,67840.0,0.16856041]
[1729244876179,0.45157304,67841.0,67840.0,0.21272407]
[1729244876180,0.55157304,67841.0,67840.0,0.21272407]
[1729244876426,0.55157304,67841.0,67840.0,0.06376492]
[1729244876679,0.55157304,67841.0,67835.0,0.11042223]
[1729244876680,0.1825,67836.0,67835.0,0.04416157]
[1729244876884,0.43194697,67832.0,67830.0,0.21942817]
[1729244877094,0.66212311,67832.0,67831.0,0.15117051]
[1729244878037,0.5990482,67832.0,67831.0,0.15117051]
[1729244879029,0.6020482,67832.0,67831.0,0.15117051]
[1729244880670,0.6020482,67832.0,67831.0,0.15199851]
[1729244881627,0.6020482,67832.0,67831.0,0.00303936]
[1729244881875,0.6020482,67832.0,67831.0,0.000828]
[1729244890523,0.87622768,67832.0,67831.0,0.000828]
[1729244890784,0.6070482,67832.0,67831.0,0.000828]
[1729244891235,0.6040482,67832.0,67831.0,0.000828]
[1729244891699,0.5990482,67832.0,67831.0,0.000828]
[1729244892378,0.5990482,67832.0,67831.0,0.001828]
[1729244892874,0.6080482,67832.0,67831.0,0.002828]
[1729244898086,0.55607802,67832.0,67831.0,0.002828]
[1729244898805,0.67120907,67832.0,67831.0,0.002828]
[1729244899125,0.85510295,67832.0,67831.0,0.002828]
[1729244899812,0.68247727,67832.0,67831.0,0.002828]
[1729244900064,0.68747727,67832.0,67831.0,0.002828]
[1729244900809,0.78455552,67832.0,67831.0,0.002828]
[1729244901062,0.78955552,67832.0,67831.0,0.002828]
[1729244901293,0.79155552,67832.0,67831.0,0.002828]
[1729244901547,0.78955552,67832.0,67831.0,0.002828]
[1729244901738,0.80148563,67832.0,67831.0,0.002828]